bitfinex-derivatives/quotes_BTCF0:USTF0_20250728
["timestamp","ask_amount","ask_price","bid_price","bid_amount"]
[1753729427869,0.0001,118080.0,118030.0,1.39688959]
[1753729428070,0.04924,118080.0,118070.0,0.53771176]
[1753729428271,0.2186237,118080.0,118070.0,1.26215176]
[1753729428580,0.04914,118090.0,118070.0,1.59263376]
[1753729428774,0.04914,118090.0,118080.0,0.76237475]
[1753729428969,0.04914,118090.0,118080.0,0.72002012]
[1753729429273,0.2658437,118100.0,118080.0,0.5698085]
[1753729429478,0.2658437,118100.0,118090.0,2.50001012]
[1753729429677,0.2235042,118100.0,118090.0,2.50001012]
[1753729429979,0.3124442,118100.0,118090.0,2.50001012]
[1753729430276,0.3124442,118100.0,118090.0,0.59297012]
[1753729430475,0.2185093,118090.0,118080.0,0.02017208]
[1753729430681,0.94012992,118090.0,118080.0,0.01917208]
[1753729430875,0.93912992,118090.0,118080.0,0.75277208]
[1753729431077,0.91878866,118090.0,118080.0,0.20179879]
[1753729431370,0.49518804,118090.0,118080.0,0.93527879]
[1753729431572,0.34716,118090.0,118080.0,0.93627879]
[1753729431973,0.34716,118090.0,118080.0,1.07267879]
[1753729432172,0.3555593,118090.0,118080.0,1.07267879]
[1753729432374,0.1743607,118100.0,118090.0,0.2717593]
[1753729432576,0.1743607,118100.0,118090.0,0.84500293]
[1753729432577,0.2209807,118100.0,118090.0,0.84500293]
[1753729432881,0.05162,118100.0,118090.0,0.42140231]
[1753729433081,0.220975,118100.0,118090.0,0.42140231]
[1753729433278,0.626585,118100.0,118090.0,0.98663301]
[1753729433486,1.05018562,118100.0,118090.0,0.98663301]
[1753729433779,1.05018562,118100.0,118090.0,0.75164301]
[1753729434085,1.05018562,118100.0,118090.0,0.75176301]
[1753729434280,1.05018562,118100.0,118090.0,0.75164301]
[1753729434479,0.626585,118100.0,118090.0,0.75164301]
[1753729434780,1.05018562,118100.0,118090.0,0.75164301]
[1753729436383,1.05018562,118100.0,118090.0,0.91199529]
[1753729436679,1.05018562,118100.0,118090.0,0.77559529]
[1753729436884,0.626585,118100.0,118090.0,1.18375459]
[1753729438586,1.05018562,118100.0,118090.0,0.27998529]
[1753729438883,1.05018562,118100.0,118090.0,1.01226529]
[1753729439785,0.626585,118100.0,118090.0,1.18099459]
[1753729440082,1.05018562,118100.0,118090.0,1.01382529]
[1753729440284,1.05018562,118100.0,118090.0,0.04119529]
[1753729440583,0.05162,118100.0,118090.0,0.87186521]
[1753729440781,0.2986049,118100.0,118090.0,0.87186521]
[1753729440984,0.5512949,118100.0,118090.0,0.27889529]
[1753729441189,1.04518552,118100.0,118090.0,0.04119529]
[1753729441391,1.04518552,118100.0,118090.0,0.21056379]
[1753729441686,1.77958552,118100.0,118090.0,0.04119529]
[1753729441883,1.04518552,118100.0,118090.0,0.04119529]
[1753729442087,1.77942552,118100.0,118090.0,0.04119529]
[1753729442682,1.94877752,118100.0,118090.0,0.04119529]
[1753729442883,1.94877752,118100.0,118080.0,0.01917208]
[1753729442884,0.1693685,118090.0,118080.0,0.01917208]
[1753729443083,1.04519912,118090.0,118080.0,0.01917208]
[1753729443388,0.3953272,118070.0,118060.0,0.47490473]
[1753729443587,0.6216272,118070.0,118060.0,0.5079738]
[1753729443795,1.04522782,118070.0,118060.0,0.49804187]
[1753729444089,1.03505744,118070.0,118060.0,0.49804187]
[1753729444282,0.61145682,118070.0,118060.0,0.49804187]
[1753729444483,0.61145682,118070.0,118060.0,0.50797391]
[1753729444888,0.60945682,118070.0,118060.0,0.50797391]
[1753729445289,0.56263402,118070.0,118060.0,0.58907391]
[1753729445694,1.29519402,118070.0,118060.0,0.53934391]
[1753729445991,0.6173235,118090.0,118080.0,0.5497723]
[1753729446189,1.08326932,118090.0,118080.0,0.36488499]
[1753729446394,1.08326932,118090.0,118080.0,0.00993204]
[1753729447290,1.12988932,118090.0,118080.0,0.00993204]
[1753729447486,0.7062887,118090.0,118080.0,0.00993204]
[1753729447687,1.12988932,118090.0,118080.0,0.00993204]
[1753729447882,1.12988932,118090.0,118080.0,0.01093204]
[1753729448087,1.12988932,118090.0,118080.0,0.01293204]
[1753729448886,0.7062887,118090.0,118080.0,0.01293204]
[1753729449083,1.12988932,118090.0,118080.0,0.01293204]
[1753729449293,0.7062887,118090.0,118080.0,0.01293204]
[1753729449486,1.12988932,118090.0,118080.0,0.01293204]
[1753729449684,1.12988932,118090.0,118080.0,0.06529427]
[1753729450194,1.12988932,118090.0,118080.0,0.09545768]
[1753729450397,1.12988932,118090.0,118080.0,0.09560712]
[1753729450991,1.11972064,118090.0,118080.0,0.07326861]
[1753729451185,1.0993835,118090.0,118080.0,0.11902047]
[1753729451392,0.67578288,118090.0,118080.0,0.25824006]
[1753729451595,1.0993835,118090.0,118080.0,0.25824006]
[1753729451995,1.0993835,118090.0,118080.0,0.41280006]
[1753729452195,1.8342635,118090.0,118080.0,0.54656006]
[1753729453104,1.8342635,118090.0,118080.0,0.56175385]
[1753729453601,1.41066288,118090.0,118080.0,0.56175385]
[1753729453794,1.0993835,118090.0,118080.0,0.56175385]
[1753729454092,1.82377526,118090.0,118080.0,0.5008082]
[1753729454892,1.82377526,118090.0,118080.0,0.5140481]
[1753729455387,1.82377526,118090.0,118080.0,0.0563451]
[1753729455792,1.99314327,118090.0,118080.0,0.11665117]
[1753729455992,0.3487074,118070.0,118060.0,0.42122683]
[1753729456198,1.77930802,118070.0,118060.0,0.47095683]
[1753729456397,1.77930802,118070.0,118060.0,0.42860393]
[1753729456599,1.77930802,118070.0,118060.0,0.33652913]
[1753729457288,1.77930802,118070.0,118060.0,0.26034707]
[1753729458203,1.77930802,118070.0,118060.0,0.26334707]
[1753729458593,1.77930802,118070.0,118060.0,0.26734707]
[1753729458794,1.77930802,118070.0,118060.0,0.26434707]
[1753729458997,1.77930802,118070.0,118060.0,0.26234707]
[1753729459200,1.77930802,118070.0,118060.0,0.09493537]
[1753729459799,1.77930802,118070.0,118060.0,0.26434707]
[1753729460000,1.77930802,118070.0,118060.0,0.09493537]
[1753729460300,1.77930802,118070.0,118060.0,0.26434707]
[1753729460603,1.77930802,118070.0,118060.0,0.09493537]
[1753729460801,1.3557074,118070.0,118060.0,0.26434697]
[1753729461004,1.3557074,118070.0,118060.0,0.09493537]
[1753729461005,1.77930802,118070.0,118060.0,0.09493537]
[1753729462802,0.6216274,118070.0,118060.0,0.29571727]
[1753729463003,1.77718802,118070.0,118060.0,0.49819727]
[1753729463204,1.77718802,118070.0,118060.0,0.54353163]
[1753729464104,1.04522802,118070.0,118060.0,0.54353163]
[1753729464308,1.77718802,118070.0,118060.0,0.54353163]
[1753729464500,1.77718802,118070.0,118060.0,0.30968163]
[1753729464701,1.77718802,118070.0,118060.0,0.14026973]
[1753729465906,1.77718802,118070.0,118060.0,0.17047751]
[1753729466204,1.77718802,118070.0,118060.0,0.12514315]
[1753729466806,1.77718802,118070.0,118060.0,0.17047751]
[1753729467006,1.77718802,118070.0,118060.0,0.12514315]
[1753729467900,1.77718802,118070.0,118060.0,0.15054789]
[1753729471106,1.94658802,118070.0,118060.0,0.11984661]
[1753729471703,1.77718802,118070.0,118060.0,0.11984661]
[1753729472105,1.77918802,118070.0,118060.0,0.11784661]
[1753729474608,1.78218802,118070.0,118060.0,0.11584661]
[1753729475312,1.78218802,118070.0,118060.0,0.09320297]
[1753729475914,0.6162216,118060.0,118050.0,0.07689135]
[1753729476115,0.616236,118050.0,118040.0,0.03020778]
[1753729476299,1.78553867,118050.0,118040.0,0.03020778]
[1753729477208,1.78653867,118050.0,118040.0,0.03020778]
[1753729477506,1.78753867,118050.0,118040.0,0.03020778]
[1753729477712,1.78753867,118050.0,118040.0,0.19964808]
[1753729478006,1.78753867,118050.0,118040.0,0.26903344]
[1753729478210,1.09244805,118050.0,118040.0,0.64708344]
[1753729478403,1.78749867,118050.0,118040.0,0.72013344]
[1753729479310,0.19012805,118050.0,118040.0,0.74363119]
[1753729479509,0.61372867,118050.0,118040.0,0.75875777]
[1753729479711,0.63060008,118050.0,118040.0,0.71342341]
[1753729480105,0.78717008,118050.0,118040.0,0.71342341]
[1753729480607,1.07741008,118050.0,118040.0,0.71342341]
[1753729481012,1.07741008,118050.0,118040.0,0.69355845]
[1753729481211,1.07741008,118050.0,118040.0,0.64270405]
[1753729481808,1.07741008,118050.0,118040.0,0.71342341]
[1753729482113,1.07741008,118050.0,118040.0,0.68561149]
[1753729482813,1.07941008,118050.0,118040.0,0.68561149]
[1753729483414,1.07841008,118050.0,118040.0,0.68561149]
[1753729483615,1.07941008,118050.0,118040.0,0.68561149]
[1753729483815,0.65580946,118050.0,118040.0,0.68561149]
[1753729484015,1.07941008,118050.0,118040.0,0.68561149]
[1753729487020,1.80393008,118050.0,118040.0,0.68561149]
[1753729487910,1.07941008,118050.0,118040.0,0.68561149]
[1753729488221,1.80309008,118050.0,118040.0,0.68561149]
[1753729489416,1.78438803,118050.0,118040.0,0.68561149]
[1753729489616,1.06070803,118050.0,118040.0,0.68561149]
[1753729489817,1.78398803,118050.0,118040.0,0.68561149]
[1753729490009,0.02087141,118050.0,118040.0,0.68561149]
[1753729490817,0.19029701,118050.0,118040.0,0.68561149]
[1753729491209,0.02087141,118050.0,118040.0,0.68561149]
[1753729492414,0.18014,118070.0,118060.0,0.37104]
[1753729492718,0.31551208,118080.0,118070.0,0.6098669]
[1753729492910,0.37286338,118080.0,118070.0,0.6098669]
[1753729493108,0.28816888,118080.0,118070.0,0.6098669]
[1753729493312,0.211721,118090.0,118080.0,0.1693826]
[1753729493522,0.360001,118090.0,118080.0,0.6098526]
[1753729494113,0.14828,118090.0,118080.0,1.3319326]
[1753729494317,0.4940166,118100.0,118090.0,0.6098382]
[1753729494519,0.1868431,118100.0,118090.0,0.6098382]
[1753729494820,0.0174892,118100.0,118090.0,0.6098382]
[1753729495517,0.0184892,118100.0,118090.0,0.6098382]
[1753729496616,0.0184892,118100.0,118090.0,1.03343882]
[1753729497118,0.04616,118110.0,118100.0,0.2584419]
[1753729497315,0.40295633,118130.0,118110.0,0.0846644]
[1753729497517,0.04616,118120.0,118110.0,0.2963378]
[1753729497916,0.04616,118120.0,118110.0,0.3386718]
[1753729498520,0.04616,118120.0,118110.0,0.40774636]
[1753729498723,0.04716,118120.0,118110.0,0.40774636]
[1753729500121,0.04916,118120.0,118110.0,0.40774636]
[1753729500815,0.04716,118120.0,118110.0,0.40774636]
[1753729501015,0.2174851,118120.0,118110.0,0.40774636]
[1753729503121,0.6236951,118120.0,118110.0,0.40774636]
[1753729505117,0.04816,118120.0,118110.0,0.40774636]
[1753729506216,0.20596,118120.0,118110.0,0.40774636]
[1753729507219,0.35467,118120.0,118110.0,0.40774636]
[1753729509631,0.45437,118120.0,118110.0,0.40774636]
[1753729511220,0.45437,118120.0,118110.0,1.12486636]
[1753729514429,0.45437,118120.0,118110.0,1.44373781]
[1753729516630,0.46978323,118130.0,118120.0,0.1693251]
[1753729516931,0.24371323,118130.0,118120.0,0.48819655]
[1753729517134,0.46978323,118130.0,118120.0,0.48819655]
[1753729517836,0.47178323,118130.0,118120.0,0.48819655]
[1753729518237,0.40351323,118130.0,118120.0,0.48819655]
[1753729518444,0.47178323,118130.0,118120.0,0.48819655]
[1753729522734,0.47178323,118130.0,118120.0,0.52967729]
[1753729523346,0.47178323,118130.0,118120.0,0.21080584]
[1753729524043,0.47178323,118130.0,118120.0,0.52967729]
[1753729524642,0.97653532,118130.0,118120.0,0.92236584]
[1753729524844,0.97653532,118130.0,118120.0,0.92224584]
[1753729528352,0.43159387,118130.0,118120.0,0.92224584]
[1753729528545,0.66924387,118130.0,118120.0,1.24111729]
[1753729528744,0.66924387,118130.0,118120.0,0.92132584]
[1753729529452,0.49993317,118130.0,118120.0,0.92132584]
[1753729529650,0.66924387,118130.0,118120.0,0.92132584]
[1753729530052,0.49993317,118130.0,118120.0,0.92132584]
[1753729530245,0.49993317,118130.0,118120.0,1.24019729]
[1753729530953,0.27246317,118130.0,118120.0,1.24019729]
[1753729531152,0.1692902,118150.0,118130.0,0.1269769]
[1753729531453,0.48043691,118150.0,118140.0,1.14086947]
[1753729532256,0.64971891,118150.0,118140.0,0.82199802]
[1753729532554,0.65171891,118150.0,118140.0,0.77967472]
[1753729533147,0.65271891,118150.0,118140.0,1.09854617]
[1753729534257,0.65271891,118150.0,118140.0,0.77967472]
[1753729534950,0.65271891,118150.0,118140.0,0.79700752]
[1753729535454,0.48343691,118150.0,118140.0,1.11587897]
[1753729535656,0.65271901,118150.0,118140.0,1.11587897]
[1753729535852,0.48343691,118150.0,118140.0,1.11587897]
[1753729536051,0.01958691,118150.0,118140.0,1.11587897]
[1753729536246,0.01958691,118150.0,118140.0,1.20052072]
[1753729536450,0.06564691,118150.0,118140.0,0.88164927]
[1753729536652,0.06564691,118150.0,118140.0,1.20052072]
[1753729537251,0.46385,118170.0,118160.0,0.0538379]
[1753729537455,0.46385,118170.0,118160.0,1.30173165]
[1753729537659,0.6331034,118170.0,118160.0,1.30173165]
[1753729537861,0.6331034,118170.0,118160.0,0.9828602]
[1753729538260,0.46385,118170.0,118160.0,0.9828602]
[1753729538558,0.6331033,118170.0,118160.0,1.30173165]
[1753729538758,0.95197475,118170.0,118160.0,0.8862677]
[1753729538960,0.95197475,118170.0,118160.0,0.8857477]
[1753729539156,0.95197475,118170.0,118160.0,0.1692677]
[1753729539360,0.95197475,118170.0,118160.0,0.8856277]
[1753729540159,0.95197475,118170.0,118160.0,0.1692677]
[1753729540360,0.1692512,118180.0,118160.0,1.03523145]
[1753729540361,0.23263,118180.0,118160.0,1.03523145]
[1753729540555,0.6331033,118170.0,118160.0,0.1692676]
[1753729540864,0.6331033,118170.0,118160.0,0.8852276]
[1753729541260,0.6331033,118170.0,118160.0,0.8851076]
[1753729543553,0.95197475,118170.0,118160.0,0.8851076]
[1753729543764,0.95197475,118170.0,118160.0,0.1692676]
[1753729543960,0.95197475,118170.0,118160.0,0.8847076]
[1753729544361,0.95197475,118170.0,118160.0,0.1692676]
[1753729544561,0.95197475,118170.0,118160.0,0.8840276]
[1753729544863,0.6331033,118170.0,118160.0,0.8840276]
[1753729545964,0.95197475,118170.0,118160.0,0.8840276]
[1753729546468,0.6331033,118170.0,118160.0,0.8840276]
[1753729546856,0.6331033,118170.0,118160.0,0.9040592]
[1753729548165,0.95197475,118170.0,118160.0,0.0200316]
[1753729548460,0.95197475,118170.0,118160.0,0.7336316]
[1753729549172,0.96816935,118170.0,118160.0,0.7336316]
[1753729549866,0.96816935,118170.0,118160.0,0.9028993]
[1753729550666,0.96816935,118170.0,118160.0,0.7336316]
[1753729550868,0.96816935,118170.0,118160.0,0.9028993]
[1753729552466,0.4254979,118170.0,118160.0,0.94427393]
[1753729552770,0.6692679,118170.0,118160.0,1.27738538]
[1753729553159,0.5000146,118170.0,118160.0,1.27738538]
[1753729553363,0.6692679,118170.0,118160.0,0.95851393]
[1753729553862,0.5000146,118170.0,118160.0,0.95851393]
[1753729554064,0.6530733,118170.0,118160.0,0.95851393]
[1753729554367,0.4093033,118170.0,118160.0,0.95851393]
[1753729554568,0.6530733,118170.0,118160.0,0.95851393]
[1753729555066,0.04676,118170.0,118160.0,1.27738538]
[1753729555271,0.04676,118180.0,118160.0,1.15043148]
[1753729555472,0.04676,118180.0,118170.0,0.65186835]
[1753729555767,0.04676,118180.0,118170.0,0.67189995]
[1753729556460,0.11312621,118190.0,118170.0,0.53079905]
[1753729556666,0.45588621,118190.0,118180.0,0.806247]
[1753729556976,0.62511091,118190.0,118180.0,0.8262786]
[1753729557168,0.04676,118190.0,118180.0,0.7698025]
[1753729557464,0.04676,118190.0,118180.0,1.31909422]
[1753729558374,0.2159847,118190.0,118180.0,1.31909422]
[1753729558666,0.5820547,118190.0,118180.0,0.91560517]
[1753729558873,0.97191615,118190.0,118180.0,0.83099107]
[1753729559260,0.97191615,118190.0,118180.0,0.77955407]
[1753729559464,0.97191615,118190.0,118180.0,0.75686407]
[1753729560576,0.6530447,118190.0,118180.0,0.75686407]
[1753729560971,0.97191615,118190.0,118180.0,0.20814307]
[1753729561171,0.97191615,118190.0,118180.0,0.75674407]
[1753729561379,0.97191615,118190.0,118180.0,0.92598297]
[1753729561676,0.98811426,118190.0,118180.0,0.0200316]
[1753729562964,0.6062989,118180.0,118170.0,0.06887045]
[1753729563166,0.6530733,118170.0,118160.0,0.18799193]
[1753729563367,0.97194475,118170.0,118160.0,0.90643193]
[1753729563776,0.97194475,118170.0,118160.0,0.18799193]
[1753729563983,0.98823934,118170.0,118160.0,0.90631223]
[1753729564274,0.98823973,118170.0,118160.0,0.01872463]
[1753729564572,0.98823973,118170.0,118160.0,0.73668463]
[1753729565374,0.98823973,118170.0,118160.0,0.73656463]
[1753729565875,0.98823973,118170.0,118160.0,0.01872463]
[1753729566078,0.98823973,118170.0,118160.0,0.73604463]
[1753729566277,0.98823973,118170.0,118160.0,0.01872463]
[1753729566480,0.98823973,118170.0,118160.0,0.73592463]
[1753729566774,0.98823973,118170.0,118160.0,0.90511223]
[1753729569178,0.66936828,118170.0,118160.0,0.90511223]
[1753729569579,0.49658828,118170.0,118160.0,0.90511223]
[1753729569772,0.66936828,118170.0,118160.0,0.90511223]
[1753729571476,0.98823973,118170.0,118160.0,0.90511223]
[1753729572073,0.66936828,118170.0,118160.0,0.90511223]
[1753729572275,0.98823973,118170.0,118160.0,0.90631223]
[1753729573882,0.98823973,118170.0,118160.0,0.90623223]
[1753729574077,0.98823973,118170.0,118160.0,0.18799223]
[1753729574279,0.98823973,118170.0,118160.0,0.90619223]
[1753729575075,0.98823973,118170.0,118160.0,0.926164]
[1753729575780,0.98823973,118170.0,118160.0,0.207964]
[1753729576489,0.98823973,118170.0,118160.0,0.925524]
[1753729576885,0.98823973,118170.0,118160.0,0.0386964]
[1753729577070,0.98823973,118170.0,118160.0,0.207964]
[1753729577270,0.98823973,118170.0,118160.0,0.925284]
[1753729577679,0.66936828,118170.0,118160.0,0.207964]
[1753729577882,0.66936828,118170.0,118160.0,0.925844]
[1753729578282,0.98823973,118170.0,118160.0,0.925844]
[1753729580285,0.66936828,118170.0,118160.0,0.925844]
[1753729580482,0.98823973,118170.0,118160.0,0.207964]
[1753729580687,0.98823973,118170.0,118160.0,0.924924]
[1753729581587,0.98823973,118170.0,118160.0,0.207964]
[1753729581787,0.98823973,118170.0,118160.0,0.924924]
[1753729584279,0.98823973,118170.0,118160.0,0.207964]
[1753729584483,0.98823973,118170.0,118160.0,0.7552964]
[1753729584682,0.98823973,118170.0,118160.0,0.7549764]
[1753729584881,0.98823973,118170.0,118160.0,0.9242437]
[1753729585081,0.98823973,118170.0,118160.0,0.7549764]
[1753729585683,0.98823973,118170.0,118160.0,0.2079637]
[1753729585886,0.98823973,118170.0,118160.0,0.9240837]
[1753729586588,0.98823973,118170.0,118160.0,0.9236837]
[1753729587078,0.98823973,118170.0,118160.0,0.2079637]
[1753729587281,0.98823973,118170.0,118160.0,0.7543764]
[1753729588191,0.98823973,118170.0,118160.0,0.9236437]
[1753729589499,0.66936828,118170.0,118160.0,0.9236437]
[1753729589689,0.98823973,118170.0,118160.0,0.9236437]
[1753729591589,0.98823973,118170.0,118160.0,0.95369288]
[1753729591787,0.98823973,118170.0,118160.0,0.78442558]
[1753729592489,0.98823973,118170.0,118160.0,0.06874558]
[1753729592692,0.98823973,118170.0,118160.0,0.7528964]
[1753729592891,0.66936828,118170.0,118160.0,1.24103515]
[1753729593095,0.66936828,118170.0,118160.0,0.9221637]
[1753729593585,0.67202828,118170.0,118160.0,1.24103515]
[1753729593785,0.67202828,118170.0,118160.0,1.27108433]
[1753729594086,0.04943,118180.0,118170.0,0.1692529]
[1753729594288,0.5271159,118200.0,118180.0,0.1156059]
[1753729594592,0.7186659,118200.0,118190.0,0.81684442]
[1753729594896,0.6763605,118200.0,118190.0,0.83681619]
[1753729595293,0.99523195,118200.0,118190.0,0.83681619]
[1753729595685,0.6340559,118200.0,118190.0,0.83681619]
[1753729596380,0.6834859,118200.0,118190.0,0.83681619]
[1753729596782,1.00235735,118200.0,118190.0,0.66759189]
[1753729597191,1.00235735,118200.0,118190.0,0.83681619]
[1753729597389,1.00235735,118200.0,118190.0,0.90310407]
[1753729598190,1.00235735,118200.0,118190.0,0.25727395]
[1753729598488,1.00235735,118200.0,118190.0,0.80564965]
[1753729598793,1.00235735,118200.0,118190.0,0.08804965]
[1753729598987,1.00235735,118200.0,118190.0,0.80564965]
[1753729599187,1.00235735,118200.0,118190.0,0.08804965]
[1753729599588,1.00235735,118200.0,118190.0,0.80560965]
[1753729600596,1.00235735,118200.0,118190.0,0.8482627]
[1753729601799,1.00235735,118200.0,118190.0,1.0174869]
[1753729601988,1.00235735,118200.0,118190.0,0.8482627]
[1753729602500,1.00235735,118200.0,118190.0,1.0174869]
[1753729602895,1.00235735,118200.0,118190.0,0.8482627]
[1753729603099,0.6834859,118200.0,118190.0,1.0174869]
[1753729603596,0.6098359,118200.0,118190.0,1.0186069]
[1753729603800,0.6834859,118200.0,118190.0,1.0186069]
[1753729604102,0.6834859,118200.0,118190.0,1.0174869]
[1753729604606,1.00235735,118200.0,118190.0,1.0174869]
[1753729605103,1.00235735,118200.0,118190.0,0.2999269]
[1753729605400,1.00235735,118200.0,118190.0,1.0162469]
[1753729605803,0.6834859,118200.0,118190.0,1.0162469]
[1753729606799,0.1692243,118200.0,118190.0,1.058552]
[1753729606996,0.3520943,118200.0,118190.0,1.1464677]
[1753729607405,0.3520943,118200.0,118190.0,1.3892377]
[1753729608805,0.6361843,118200.0,118190.0,1.3892377]
[1753729611002,0.67093705,118210.0,118200.0,0.19041]
[1753729611207,0.68619008,118210.0,118200.0,0.66797167]
[1753729612404,0.36731863,118210.0,118200.0,0.66797167]
[1753729613009,0.63883863,118210.0,118200.0,0.66797167]
[1753729613807,0.63883863,118210.0,118200.0,0.93087167]
[1753729614307,0.01525303,118210.0,118200.0,0.96687135]
[1753729614604,0.01525303,118210.0,118200.0,0.98782543]
[1753729614908,0.0576274,118220.0,118210.0,0.4853141]
[1753729615103,0.0576274,118220.0,118210.0,1.82675963]
[1753729615406,0.1888155,118220.0,118210.0,1.82675963]
[1753729616410,0.1465181,118220.0,118210.0,1.82675963]
[1753729617498,0.4228379,118260.0,118210.0,1.82675963]
[1753729617702,0.0422948,118230.0,118220.0,0.76287905]
[1753729618004,0.2537709,118230.0,118220.0,1.82877238]
[1753729619407,0.2960657,118230.0,118220.0,1.82877238]
[1753729619613,0.2537709,118230.0,118220.0,1.82877238]
[1753729621110,0.2537709,118230.0,118220.0,1.82820394]
[1753729621705,0.2537709,118230.0,118220.0,1.78590934]
[1753729621902,0.2537709,118230.0,118220.0,0.02413873]
[1753729622108,0.2537709,118230.0,118220.0,0.78021873]
[1753729622511,0.2537709,118230.0,118220.0,0.02413873]
[1753729622710,0.2537709,118230.0,118220.0,0.77993873]
[1753729622910,0.2537709,118230.0,118220.0,0.94811973]
[1753729623112,0.2537709,118230.0,118220.0,0.94799973]
[1753729623412,0.2537709,118230.0,118220.0,1.38066973]
[1753729623712,0.2537709,118230.0,118220.0,1.69897274]
[1753729624513,0.2537709,118230.0,118220.0,1.52979174]
[1753729624917,0.2537709,118230.0,118220.0,1.69897274]
[1753729625109,0.2537709,118230.0,118220.0,1.52979174]
[1753729625413,0.2537709,118230.0,118220.0,1.21148873]
[1753729626112,0.2537709,118230.0,118220.0,0.50152873]
[1753729626309,0.2537709,118230.0,118220.0,1.21060873]
[1753729626913,0.58514838,118230.0,118220.0,0.06885873]
[1753729627109,1.00431638,118230.0,118220.0,0.73209873]
[1753729627316,1.00431638,118230.0,118220.0,0.75468]
[1753729627620,1.00431638,118230.0,118220.0,1.21033358]
[1753729628315,0.75431638,118230.0,118220.0,0.50137358]
[1753729628512,0.75431638,118230.0,118220.0,1.21037358]
[1753729629819,0.74124191,118230.0,118220.0,1.21037358]
[1753729631718,0.4229389,118230.0,118220.0,1.21037358]
[1753729632521,0.3246389,118230.0,118220.0,1.21037358]
[1753729632721,0.3669337,118230.0,118220.0,1.21037358]
[1753729633022,0.4092285,118230.0,118220.0,1.21037358]
[1753729633221,0.72753151,118230.0,118220.0,1.21037358]
[1753729633417,0.72753151,118230.0,118220.0,0.06870358]
[1753729633616,0.79168151,118230.0,118220.0,0.68887788]
[1753729633811,0.79168151,118230.0,118220.0,0.62234238]
[1753729634016,0.79168151,118230.0,118220.0,0.58471488]
[1753729634221,0.2333309,118220.0,118210.0,0.45215]
[1753729634422,0.56443406,118220.0,118210.0,1.16055]
[1753729634624,0.56443406,118220.0,118210.0,0.69557]
[1753729634818,0.56443406,118220.0,118210.0,1.40401]
[1753729635018,0.56443406,118220.0,118210.0,1.14111]
[1753729635617,0.56443406,118220.0,118210.0,1.18683]
[1753729635818,0.24613105,118220.0,118210.0,0.47839]
[1753729636019,0.56443406,118220.0,118210.0,1.18671]
[1753729637126,0.56443406,118220.0,118210.0,1.18663]
[1753729638119,0.56443406,118220.0,118210.0,0.47839]
[1753729638321,0.56443406,118220.0,118210.0,1.18667]
[1753729640027,0.56443406,118220.0,118210.0,0.23497]
[1753729640223,0.2011053,118210.0,118200.0,1.72184]
[1753729640420,0.56444846,118210.0,118200.0,2.43024]
[1753729640927,0.53220846,118210.0,118200.0,2.16734]
[1753729641317,0.53220846,118210.0,118200.0,1.18679]
[1753729641624,0.53220846,118210.0,118200.0,1.18563]
[1753729641824,0.56444846,118210.0,118200.0,1.18563]
[1753729642033,0.53220846,118210.0,118200.0,1.18663]
[1753729642733,0.53220846,118210.0,118200.0,0.47939]
[1753729642937,0.53220846,118210.0,118200.0,1.18651]
[1753729643140,0.53220846,118210.0,118200.0,0.47939]
[1753729643333,0.53220846,118210.0,118200.0,1.18607]
[1753729643733,0.53220846,118210.0,118200.0,1.18599]
[1753729644337,0.53220846,118210.0,118200.0,0.23141]
[1753729644538,0.56444846,118210.0,118200.0,1.16923]
[1753729645241,0.56444846,118210.0,118200.0,1.17023]
[1753729645537,0.53220846,118210.0,118200.0,1.16995]
[1753729645737,0.53220846,118210.0,118200.0,1.19318839]
[1753729645934,0.21390545,118210.0,118200.0,1.19318839]
[1753729646840,0.18199545,118210.0,118200.0,2.26190371]
[1753729647136,0.18199545,118210.0,118200.0,1.9432407]
[1753729647336,0.18199545,118210.0,118200.0,1.96568732]
[1753729647733,0.18199545,118210.0,118200.0,1.79647802]
[1753729647928,0.18199545,118210.0,118200.0,1.96568742]
[1753729648235,0.18199545,118210.0,118200.0,1.2374008]
[1753729648537,0.18199545,118210.0,118200.0,1.9429608]
[1753729649437,0.18199545,118210.0,118200.0,1.7735514]
[1753729649834,0.18199545,118210.0,118200.0,1.9427607]
[1753729650639,0.18199545,118210.0,118200.0,1.96528732]
[1753729651537,0.00699545,118210.0,118200.0,1.96528732]
[1753729651738,0.1691953,118210.0,118200.0,2.09218692]
[1753729652137,0.1691953,118210.0,118200.0,2.04988672]
[1753729652337,0.1691953,118210.0,118200.0,1.73158371]
[1753729654240,0.1691953,118210.0,118200.0,1.70905709]
[1753729654935,0.1691953,118210.0,118200.0,2.0273601]
[1753729655338,0.1691953,118210.0,118200.0,1.9850599]
[1753729658744,0.1691919,118220.0,118210.0,1.03799111]
[1753729659038,0.1691919,118220.0,118210.0,1.1035271]
[1753729659246,0.1691919,118220.0,118210.0,0.78522409]
[1753729659452,0.1691919,118220.0,118210.0,0.74292649]
[1753729660445,0.1691919,118220.0,118210.0,1.0612295]
[1753729661743,0.1691919,118220.0,118210.0,0.8074414]
[1753729662046,0.1691919,118220.0,118210.0,1.36121329]
[1753729662445,0.1691919,118220.0,118210.0,1.19201839]
[1753729662740,0.1691919,118220.0,118210.0,0.48913839]
[1753729662945,0.1691919,118220.0,118210.0,1.19193839]
[1753729663145,0.1691919,118220.0,118210.0,0.48913839]
[1753729663745,0.18301708,118220.0,118210.0,1.36085329]
[1753729664445,0.18301708,118220.0,118210.0,1.38337991]
[1753729667348,0.18301708,118220.0,118210.0,1.70168292]
[1753729667549,0.18301708,118220.0,118210.0,1.96458292]
[1753729668554,0.182985,118220.0,118210.0,1.96387271]
[1753729668744,0.182985,118220.0,118210.0,1.26135271]
[1753729668940,0.182985,118220.0,118210.0,1.96315271]
[1753729670156,0.182985,118220.0,118210.0,1.98208593]
[1753729670452,0.2537529,118230.0,118220.0,0.6360805]
[1753729670643,0.2537529,118230.0,118220.0,0.97685841]
[1753729671353,0.2537529,118230.0,118220.0,1.23975841]
[1753729671541,0.084578,118240.0,118220.0,1.23975841]
[1753729671747,0.2114503,118240.0,118230.0,1.32529561]
[1753729671949,0.2114503,118240.0,118230.0,1.34777051]
[1753729672253,0.2114503,118240.0,118230.0,1.0294675]
[1753729672841,0.2114503,118240.0,118230.0,0.6575412]
[1753729673051,0.2114503,118240.0,118230.0,1.3600612]
[1753729673551,0.2114503,118240.0,118230.0,1.67836421]
[1753729673954,0.2114503,118240.0,118230.0,0.97584421]
[1753729674252,0.4800303,118240.0,118230.0,1.1904549]
[1753729674447,0.4800303,118240.0,118230.0,1.3596212]
[1753729674648,0.3208303,118240.0,118230.0,1.1904549]
[1753729674949,0.99662331,118240.0,118230.0,1.1905349]
[1753729675150,0.99662331,118240.0,118230.0,1.1904149]
[1753729675652,0.6783203,118240.0,118230.0,1.20904814]
[1753729675853,0.99662331,118240.0,118230.0,1.20904814]
[1753729676456,0.99662331,118240.0,118230.0,1.47194814]
[1753729677151,0.99662331,118240.0,118230.0,0.76990814]
[1753729677453,0.99662331,118240.0,118230.0,1.47182814]
[1753729678750,0.99662331,118240.0,118230.0,0.7512749]
[1753729678958,0.99662331,118240.0,118230.0,1.01227]